{"text_format":"1","workbook":"xlsx","n_sheets":3,"sheets":["Personalausgaben","Zusammenfassung","Referenzwerte"],"not_rendered":{"charts":0,"images":0,"macros":1,"external_links":1,"defined_names":5,"comments":0,"pivot_tables":0},"unopened":[],"bounds":{"document_bytes":16777216,"sheet_cells":100000,"rows_first":2000,"rows_last":500,"rows_between":2000,"halvings":0,"cell_chars":16384,"cell_head_chars":4096},"cells_cut":0,"cells_raw":0,"read":"whole","date_system":"1900"}

{"sheet":"Personalausgaben","index":0,"n_rows":70,"n_cols":15,"rows_kept":70,"cut":false,"hidden":false,"merged":[[4,3,4,4],[5,3,5,4],[4,10,4,11],[5,10,5,11],[6,10,6,11],[6,3,6,4],[4,12,4,14],[5,12,5,14],[6,12,6,14],[5,5,5,9],[4,5,4,9],[7,3,7,4],[7,5,7,6],[7,8,7,9],[6,5,6,9],[31,3,34,14],[9,5,9,6]]}
[1,null,null,"Bundesprogramm \"Soziale Teilhabe am Arbeitsmarkt\""]
[]
[null,null,null,{"$f":"\"Darstellung der Personalausgaben, Teil A \"&CHAR(34)&\"Einzeldaten\"&\" für \"&A1&(IF(A1>1,\" Arbeitsplätze\",\" Arbeitplatz\"))&CHAR(34)&\" (Ausgabenübersicht)\"","v":"Darstellung der Personalausgaben, Teil A \"Einzeldaten für 1 Arbeitplatz\" (Ausgabenübersicht)"}]
[]
[null,null,null,"Zuwendungsempfänger:",null,null,null,null,null,null,"Ansprechpartner für Rückfragen:"]
[null,null,null,"Förderkennzeichen:",null,null,null,null,null,null,"Telefonnummer:"]
[null,null,null,"Projektbezeichnung :",null,null,null,null,null,null,"E-Mail-Adresse:"]
[null,null,null,"Bewilligungszeitraum:",null,null,null,"bis:"]
[null,null,null,null,null,null,null,null,null,null,null,null,null,null,"Version 4*"]
[null,null,null,"Haushaltsjahr:",null,2018,null,null,null,{"$f":"IF((AND(F5<>\"\",F6<>\"\",F7<>\"\",F8<>\"\",I8<>\"\",F10<>\"* Bitte auswählen *\",F10<>\"\"))=FALSE,\"Bitte alle Kopfdaten vollständig ausfüllen, sonst ist keine Berechnung möglich.\",\"\")","v":"Bitte alle Kopfdaten vollständig ausfüllen, sonst ist keine Berechnung möglich."}]
[]
[null,null,"↓",{"$f":"\"← Filter zum Ausblenden nicht besetzter Arbeitsplätze.                             Das Formular umfaßt \"&A1& IF(A1>1,\" Arbeitsplätze.\",\" Arbeitplatz.\")","v":"← Filter zum Ausblenden nicht besetzter Arbeitsplätze.                             Das Formular umfaßt 1 Arbeitplatz."}]
[null,null,{"$f":"IF((COUNTA(E16:E27))>0,\"Nur besetzte Arbeitsplätze einblenden\",\"\")","v":""}]
[null,null,"Nur besetzte Arbeitsplätze einblenden",{"$f":"\"Arbeitsplatz \"&H14&\"   \"&IF((COUNTIF(E16:E27,\"<>\"))>0,\"(im lfd. Jahr in mindestens 1 Monat besetzt)\",\"(nicht besetzt)\")","v":"Arbeitsplatz 1   (nicht besetzt)"},null,null,null,1]
[null,null,{"$f":"IF((COUNTA(E16:E27))>0,\"Nur besetzte Arbeitsplätze einblenden\",\"\")","v":""},{"$f":"\"Monat im Jahr \"&$F$10","v":"Monat im Jahr 2018"},"Besetzt mit\nArbeitnehmer/in\nName, Vorname","WAZ","Erstattungen z.B. U1 / U2","Tatsächliches \nAN-Brutto","Tatsächlicher \nSV-AG Gesamt-anteil ","SV-AG Pauschale 18,90 % ","Obergrenze\nentsprechend Fin.-Plan bzw. Maximum für WAZ","Kürzung  um Erstattungs-anteil","Eigenmittel","Zuwendung Bund (max. Festbetrag)","Nur bei nach-träglicher Gehalts-korrektur: \"ja\""]
["Zählung",1,{"$f":"IF((COUNTA(E16:E27))>0,\"Nur besetzte Arbeitsplätze einblenden\",\"\")","v":""},"Januar",null,null,null,null,null,{"$f":"ROUND(H16*0.189,2)","v":0},{"$f":"MIN(H16+J16,(VLOOKUP(F16,Referenzwerte!$A$2:$B$6,2,FALSE)))","v":0},{"$f":"G16","v":0},{"$f":"IF((AND(H16>0,I16>0,H16+I16-N16-G16>0))=TRUE,H16+I16-N16-G16,0)","v":0},{"$f":"IF((AND($J$10=\"\",E16<>\"\",F16>0))=TRUE,ROUND(((MIN(H16+J16,K16))-L16),2),0)","v":0}]
["Zählung",2,{"$f":"IF((COUNTA(E16:E27))>0,\"Nur besetzte Arbeitsplätze einblenden\",\"\")","v":""},"Februar",null,null,null,null,null,0,{"$f":"MIN(H17+J17,(VLOOKUP(F17,Referenzwerte!$A$2:$B$6,2,FALSE)))","v":0},0,0,0]
["Zählung",3,{"$f":"IF((COUNTA(E16:E27))>0,\"Nur besetzte Arbeitsplätze einblenden\",\"\")","v":""},"März",null,null,null,null,null,0,{"$f":"MIN(H18+J18,(VLOOKUP(F18,Referenzwerte!$A$2:$B$6,2,FALSE)))","v":0},0,0,0]
["Zählung",4,{"$f":"IF((COUNTA(E16:E27))>0,\"Nur besetzte Arbeitsplätze einblenden\",\"\")","v":""},"April",null,null,null,null,null,0,{"$f":"MIN(H19+J19,(VLOOKUP(F19,Referenzwerte!$A$2:$B$6,2,FALSE)))","v":0},0,0,0]
["Zählung",5,{"$f":"IF((COUNTA(E16:E27))>0,\"Nur besetzte Arbeitsplätze einblenden\",\"\")","v":""},"Mai",null,null,null,null,null,0,{"$f":"MIN(H20+J20,(VLOOKUP(F20,Referenzwerte!$A$2:$B$6,2,FALSE)))","v":0},0,0,0]
["Zählung",6,{"$f":"IF((COUNTA(E16:E27))>0,\"Nur besetzte Arbeitsplätze einblenden\",\"\")","v":""},"Juni",null,null,null,null,null,0,{"$f":"MIN(H21+J21,(VLOOKUP(F21,Referenzwerte!$A$2:$B$6,2,FALSE)))","v":0},0,0,0]
["Zählung",7,{"$f":"IF((COUNTA(E16:E27))>0,\"Nur besetzte Arbeitsplätze einblenden\",\"\")","v":""},"Juli",null,null,null,null,null,0,{"$f":"MIN(H22+J22,(VLOOKUP(F22,Referenzwerte!$A$2:$B$6,2,FALSE)))","v":0},0,0,0]
["Zählung",8,{"$f":"IF((COUNTA(E16:E27))>0,\"Nur besetzte Arbeitsplätze einblenden\",\"\")","v":""},"August",null,null,null,null,null,0,{"$f":"MIN(H23+J23,(VLOOKUP(F23,Referenzwerte!$A$2:$B$6,2,FALSE)))","v":0},0,0,0]
["Zählung",9,{"$f":"IF((COUNTA(E16:E27))>0,\"Nur besetzte Arbeitsplätze einblenden\",\"\")","v":""},"September",null,null,null,null,null,0,{"$f":"MIN(H24+J24,(VLOOKUP(F24,Referenzwerte!$A$2:$B$6,2,FALSE)))","v":0},0,0,0]
["Zählung",10,{"$f":"IF((COUNTA(E16:E27))>0,\"Nur besetzte Arbeitsplätze einblenden\",\"\")","v":""},"Oktober",null,null,null,null,null,0,{"$f":"MIN(H25+J25,(VLOOKUP(F25,Referenzwerte!$A$2:$B$6,2,FALSE)))","v":0},0,0,0]
["Zählung",11,{"$f":"IF((COUNTA(E16:E27))>0,\"Nur besetzte Arbeitsplätze einblenden\",\"\")","v":""},"November",null,null,null,null,null,0,{"$f":"MIN(H26+J26,(VLOOKUP(F26,Referenzwerte!$A$2:$B$6,2,FALSE)))","v":0},0,0,0]
["Zählung",12,{"$f":"IF((COUNTA(E16:E27))>0,\"Nur besetzte Arbeitsplätze einblenden\",\"\")","v":""},"Dezember",null,null,null,null,null,0,{"$f":"MIN(H27+J27,(VLOOKUP(F27,Referenzwerte!$A$2:$B$6,2,FALSE)))","v":0},0,0,0]
[null,null,{"$f":"IF((COUNTA(E16:E27))>0,\"Nur besetzte Arbeitsplätze einblenden\",\"\")","v":""},{"$f":"\"Summen für Arbeitsplatz \"&H14","v":"Summen für Arbeitsplatz 1"},null,null,{"$f":"SUM(G16:G27)","v":0},0,0,0,null,null,{"$f":"SUM(M16:M27)","v":0},{"$f":"SUM(N16:N27)","v":0}]
[null,null,"Nur besetzte Arbeitsplätze einblenden"]
[]
[null,null,null,"Raum für Ihre Mitteilungen:"]
[]
[]
[]
[]
[]
[null,null,null,null,"Das Arbeitnehmerbrutto wird mit den in der Anlage befindlichen Nachweisen belegt:"]
[]
[null,null,null,null,"Lohnjournal/ Lohnkonto"]
[null,null,null,null,"Lohn-/Gehaltsabrechnung"]
[]
[null,null,null,null,"Die Nachweise wurden entsprechend der laufenden Arbeitsplatznummer in der Abrechnung gekennzeichnet."]
[]
[null,null,null,null,"Mit dieser Abrechnung werden Erstattungen aus Ausgleichssystemen angezeigt und mit den dazugehörenden Nachweisen belegt."]
[null,null,null,null,"Mögliche Erstattungen werden in dem Monat eingetragen und angerechnet,"]
[null,null,null,null,"           a.) in dem die Auszahlung durch die Krankenkasse erfolgte (Zuflussprinzip)"]
[null,null,null,null,"           b.) in denen der Arbeitnehmer/ die Arbeitnehmerin krank war (Erstattungsprinzip)."]
[]
[null,null,null,null,"Mit dieser Abrechnung werden nachträgliche Gehaltskorrekturen anhand der Zeile/Spalte „Korrektur“ erklärt und mit den dazugehörenden Nachweisen belegt."]
[]
[null,null,null,null,"Ich bitte um entsprechende Nachzahlung, sofern höhere Ausgaben anerkannt werden können, als bisher Mittel angefordert wurden."]
[]
[null,null,null,"Ich versichere die Richtigkeit und Vollständigkeit meiner Angaben."]
[]
[]
[]
[]
[]
[null,null,null,"Ort, Datum, Unterschrift, Stempel"]
[]
[null,null,null,"Bitte zusätzlich auch die Abrechnung Teil B \"Zusammenfassung\" unterschreiben !"]
[]
[]
[null,null,null,"Bitte beachten Sie:"]
[null,null,null,"Nicht besetzte Arbeitsplätze können für eine bessere Übersicht ausgeblendet werden."]
[null,null,null,"Für diese wird dann nur die jeweilige Kopfzeile mit einem Hinweis eingeblendet."]
[null,null,null,"Die Angabe des tatsächlichen Brutto-Lohnes (Spalte H)und AG-SV-Anteils (Spalte I) dient nur zur Berechnung und Ausweisung der verbleibenden Eigenmittel (Spalte O)."]
[null,null,null,"Drucken Sie immer alle Seiten des Formulars und die Zusammenfassung gemeinsam aus."]
[null,null,null,"Bei nachträglicher Änderung oder Ergänzung einer Eintragung müssen alle Seiten wegen der automatischen Berechnung von Summen vollständig neu ausgedruckt werden."]
[null,null,null,"Weitere Informationen und Empfehlungen finden Sie in der Arbeitshilfe zur Abrechnung und Projektbegleitung."]

{"sheet":"Zusammenfassung","index":1,"n_rows":49,"n_cols":15,"rows_kept":49,"cut":false,"hidden":false,"merged":[[4,0,4,1],[5,0,5,1],[6,0,6,1],[4,2,4,6],[5,2,5,6],[6,2,6,6],[37,0,37,14],[7,0,7,1],[7,2,7,3],[7,5,7,6],[9,2,9,3],[32,0,35,14]]}
["Bundesprogramm \"Soziale Teilhabe am Arbeitsmarkt\""]
[]
[{"$f":"\"Teil B \"&CHAR(34)&\"Zusammenfassung\"&\" für \"&Personalausgaben!$A$1&\" in Teil A abgebildete\"&(IF(Personalausgaben!$A$1>1,\" Arbeitsplätze\",\"n Arbeitsplatz\")&CHAR(34))","v":"Teil B \"Zusammenfassung für 1 in Teil A abgebildeten Arbeitsplatz\""}]
[]
["Zuwendungsempfänger:",null,{"$f":"Personalausgaben!F5","v":0}]
["Förderkennzeichen:",null,{"$f":"Personalausgaben!F6","v":0}]
["Projektbezeichnung :",null,{"$f":"Personalausgaben!F7","v":0}]
["Bewilligungszeitraum:",null,{"$f":"Personalausgaben!F8","v":"00:00:00"},null,"bis:",{"$f":"Personalausgaben!I8","v":"00:00:00"}]
[]
["Haushaltsjahr:",null,{"$f":"Personalausgaben!F10","v":2018}]
[]
[]
[{"$f":"\"Zusammenfassung aller Arbeitsplätze für \"&Personalausgaben!$F$10","v":"Zusammenfassung aller Arbeitsplätze für 2018"}]
["Monat",null,"Anzahl besetzter Arbeitsplätze","Einnahmen (erhaltene Zuwendungen)","Einnahmen erhalten am","Zuwendungs-fähige Gesamt-ausgaben","Erstattungen\nz.B. U1 / U2","Eigenmittel","Zuwendung Bund (max. Festbetrag)","Mittel-verwendung \nam","An Jobcenter zurück-gezahlter Betrag","Rückzahlung an Jobcenter ist erfolgt am","Kassenbestand","Mögliche Zinstage für eine nicht alsbaldige (innerhalb 6 Wochen) Verwendung *","Zinsen für eine nicht zweckentsprechende Verwendung *"]
[{"$f":"IF(C10>2017,\"Übertrag aus Dezember \"&C10-1,\"\")","v":"Übertrag aus Dezember 2017"}]
["Januar",1,{"$f":"COUNTIFS(Personalausgaben!$A$15:$A$30,\"Zählung\",Personalausgaben!$B$15:$B$30,$B16,Personalausgaben!$E$15:$E$30,\"<>\")","v":0},null,null,{"$f":"(SUMIFS(Personalausgaben!$H$15:$H$30,Personalausgaben!$A$15:$A$30,\"Zählung\",Personalausgaben!$B$15:$B$30,B16))+(SUMIFS(Personalausgaben!$I$15:$I$30,Personalausgaben!$A$15:$A$30,\"Zählung\",Personalausgaben!$B$15:$B$30,B16))","v":0},{"$f":"(SUMIFS(Personalausgaben!$G$15:$G$30,Personalausgaben!$A$15:$A$30,\"Zählung\",Personalausgaben!$B$15:$B$30,B16))","v":0},{"$f":"(SUMIFS(Personalausgaben!$M$15:$M$30,Personalausgaben!$A$15:$A$30,\"Zählung\",Personalausgaben!$B$15:$B$30,B16))","v":0},{"$f":"(SUMIFS(Personalausgaben!$N$15:$N$30,Personalausgaben!$A$15:$A$30,\"Zählung\",Personalausgaben!$B$15:$B$30,B16))","v":0},null,null,null,{"$f":"ROUND(M15+D16-I16-K16,2)","v":0},{"$f":"IF((AND(D16<>\"\",E16<>\"\",J16<>\"\",J16>(E16+42)))=TRUE,\"Zinsen für \"&J16-E16&\" Tage *\",\"\")","v":""},{"$f":"IF((AND(J16>0,M16>0))=TRUE,\"ja *\",\"\")","v":""}]
["Februar",2,{"$f":"COUNTIFS(Personalausgaben!$A$15:$A$30,\"Zählung\",Personalausgaben!$B$15:$B$30,$B17,Personalausgaben!$E$15:$E$30,\"<>\")","v":0},null,null,{"$f":"(SUMIFS(Personalausgaben!$H$15:$H$30,Personalausgaben!$A$15:$A$30,\"Zählung\",Personalausgaben!$B$15:$B$30,B17))+(SUMIFS(Personalausgaben!$I$15:$I$30,Personalausgaben!$A$15:$A$30,\"Zählung\",Personalausgaben!$B$15:$B$30,B17))","v":0},{"$f":"(SUMIFS(Personalausgaben!$G$15:$G$30,Personalausgaben!$A$15:$A$30,\"Zählung\",Personalausgaben!$B$15:$B$30,B17))","v":0},{"$f":"(SUMIFS(Personalausgaben!$M$15:$M$30,Personalausgaben!$A$15:$A$30,\"Zählung\",Personalausgaben!$B$15:$B$30,B17))","v":0},{"$f":"(SUMIFS(Personalausgaben!$N$15:$N$30,Personalausgaben!$A$15:$A$30,\"Zählung\",Personalausgaben!$B$15:$B$30,B17))","v":0},null,null,null,{"$f":"ROUND(M16+D17-I17-K17,2)","v":0},{"$f":"IF((AND(D17<>\"\",E17<>\"\",J17<>\"\",J17>(E17+42)))=TRUE,\"Zinsen für \"&J17-E17&\" Tage *\",\"\")","v":""},{"$f":"IF((AND(J17>0,M17>0))=TRUE,\"ja *\",\"\")","v":""}]
["März",3,{"$f":"COUNTIFS(Personalausgaben!$A$15:$A$30,\"Zählung\",Personalausgaben!$B$15:$B$30,$B18,Personalausgaben!$E$15:$E$30,\"<>\")","v":0},null,null,{"$f":"(SUMIFS(Personalausgaben!$H$15:$H$30,Personalausgaben!$A$15:$A$30,\"Zählung\",Personalausgaben!$B$15:$B$30,B18))+(SUMIFS(Personalausgaben!$I$15:$I$30,Personalausgaben!$A$15:$A$30,\"Zählung\",Personalausgaben!$B$15:$B$30,B18))","v":0},{"$f":"(SUMIFS(Personalausgaben!$G$15:$G$30,Personalausgaben!$A$15:$A$30,\"Zählung\",Personalausgaben!$B$15:$B$30,B18))","v":0},{"$f":"(SUMIFS(Personalausgaben!$M$15:$M$30,Personalausgaben!$A$15:$A$30,\"Zählung\",Personalausgaben!$B$15:$B$30,B18))","v":0},{"$f":"(SUMIFS(Personalausgaben!$N$15:$N$30,Personalausgaben!$A$15:$A$30,\"Zählung\",Personalausgaben!$B$15:$B$30,B18))","v":0},null,null,null,0,"",""]
["April",4,{"$f":"COUNTIFS(Personalausgaben!$A$15:$A$30,\"Zählung\",Personalausgaben!$B$15:$B$30,$B19,Personalausgaben!$E$15:$E$30,\"<>\")","v":0},null,null,{"$f":"(SUMIFS(Personalausgaben!$H$15:$H$30,Personalausgaben!$A$15:$A$30,\"Zählung\",Personalausgaben!$B$15:$B$30,B19))+(SUMIFS(Personalausgaben!$I$15:$I$30,Personalausgaben!$A$15:$A$30,\"Zählung\",Personalausgaben!$B$15:$B$30,B19))","v":0},{"$f":"(SUMIFS(Personalausgaben!$G$15:$G$30,Personalausgaben!$A$15:$A$30,\"Zählung\",Personalausgaben!$B$15:$B$30,B19))","v":0},{"$f":"(SUMIFS(Personalausgaben!$M$15:$M$30,Personalausgaben!$A$15:$A$30,\"Zählung\",Personalausgaben!$B$15:$B$30,B19))","v":0},{"$f":"(SUMIFS(Personalausgaben!$N$15:$N$30,Personalausgaben!$A$15:$A$30,\"Zählung\",Personalausgaben!$B$15:$B$30,B19))","v":0},null,null,null,0,"",""]
["Mai",5,{"$f":"COUNTIFS(Personalausgaben!$A$15:$A$30,\"Zählung\",Personalausgaben!$B$15:$B$30,$B20,Personalausgaben!$E$15:$E$30,\"<>\")","v":0},null,null,{"$f":"(SUMIFS(Personalausgaben!$H$15:$H$30,Personalausgaben!$A$15:$A$30,\"Zählung\",Personalausgaben!$B$15:$B$30,B20))+(SUMIFS(Personalausgaben!$I$15:$I$30,Personalausgaben!$A$15:$A$30,\"Zählung\",Personalausgaben!$B$15:$B$30,B20))","v":0},{"$f":"(SUMIFS(Personalausgaben!$G$15:$G$30,Personalausgaben!$A$15:$A$30,\"Zählung\",Personalausgaben!$B$15:$B$30,B20))","v":0},{"$f":"(SUMIFS(Personalausgaben!$M$15:$M$30,Personalausgaben!$A$15:$A$30,\"Zählung\",Personalausgaben!$B$15:$B$30,B20))","v":0},{"$f":"(SUMIFS(Personalausgaben!$N$15:$N$30,Personalausgaben!$A$15:$A$30,\"Zählung\",Personalausgaben!$B$15:$B$30,B20))","v":0},null,null,null,0,"",""]
["Juni",6,{"$f":"COUNTIFS(Personalausgaben!$A$15:$A$30,\"Zählung\",Personalausgaben!$B$15:$B$30,$B21,Personalausgaben!$E$15:$E$30,\"<>\")","v":0},null,null,{"$f":"(SUMIFS(Personalausgaben!$H$15:$H$30,Personalausgaben!$A$15:$A$30,\"Zählung\",Personalausgaben!$B$15:$B$30,B21))+(SUMIFS(Personalausgaben!$I$15:$I$30,Personalausgaben!$A$15:$A$30,\"Zählung\",Personalausgaben!$B$15:$B$30,B21))","v":0},{"$f":"(SUMIFS(Personalausgaben!$G$15:$G$30,Personalausgaben!$A$15:$A$30,\"Zählung\",Personalausgaben!$B$15:$B$30,B21))","v":0},{"$f":"(SUMIFS(Personalausgaben!$M$15:$M$30,Personalausgaben!$A$15:$A$30,\"Zählung\",Personalausgaben!$B$15:$B$30,B21))","v":0},{"$f":"(SUMIFS(Personalausgaben!$N$15:$N$30,Personalausgaben!$A$15:$A$30,\"Zählung\",Personalausgaben!$B$15:$B$30,B21))","v":0},null,null,null,0,"",""]
["Juli",7,{"$f":"COUNTIFS(Personalausgaben!$A$15:$A$30,\"Zählung\",Personalausgaben!$B$15:$B$30,$B22,Personalausgaben!$E$15:$E$30,\"<>\")","v":0},null,null,{"$f":"(SUMIFS(Personalausgaben!$H$15:$H$30,Personalausgaben!$A$15:$A$30,\"Zählung\",Personalausgaben!$B$15:$B$30,B22))+(SUMIFS(Personalausgaben!$I$15:$I$30,Personalausgaben!$A$15:$A$30,\"Zählung\",Personalausgaben!$B$15:$B$30,B22))","v":0},{"$f":"(SUMIFS(Personalausgaben!$G$15:$G$30,Personalausgaben!$A$15:$A$30,\"Zählung\",Personalausgaben!$B$15:$B$30,B22))","v":0},{"$f":"(SUMIFS(Personalausgaben!$M$15:$M$30,Personalausgaben!$A$15:$A$30,\"Zählung\",Personalausgaben!$B$15:$B$30,B22))","v":0},{"$f":"(SUMIFS(Personalausgaben!$N$15:$N$30,Personalausgaben!$A$15:$A$30,\"Zählung\",Personalausgaben!$B$15:$B$30,B22))","v":0},null,null,null,0,"",""]
["August",8,{"$f":"COUNTIFS(Personalausgaben!$A$15:$A$30,\"Zählung\",Personalausgaben!$B$15:$B$30,$B23,Personalausgaben!$E$15:$E$30,\"<>\")","v":0},null,null,{"$f":"(SUMIFS(Personalausgaben!$H$15:$H$30,Personalausgaben!$A$15:$A$30,\"Zählung\",Personalausgaben!$B$15:$B$30,B23))+(SUMIFS(Personalausgaben!$I$15:$I$30,Personalausgaben!$A$15:$A$30,\"Zählung\",Personalausgaben!$B$15:$B$30,B23))","v":0},{"$f":"(SUMIFS(Personalausgaben!$G$15:$G$30,Personalausgaben!$A$15:$A$30,\"Zählung\",Personalausgaben!$B$15:$B$30,B23))","v":0},{"$f":"(SUMIFS(Personalausgaben!$M$15:$M$30,Personalausgaben!$A$15:$A$30,\"Zählung\",Personalausgaben!$B$15:$B$30,B23))","v":0},{"$f":"(SUMIFS(Personalausgaben!$N$15:$N$30,Personalausgaben!$A$15:$A$30,\"Zählung\",Personalausgaben!$B$15:$B$30,B23))","v":0},null,null,null,0,"",""]
["September",9,{"$f":"COUNTIFS(Personalausgaben!$A$15:$A$30,\"Zählung\",Personalausgaben!$B$15:$B$30,$B24,Personalausgaben!$E$15:$E$30,\"<>\")","v":0},null,null,{"$f":"(SUMIFS(Personalausgaben!$H$15:$H$30,Personalausgaben!$A$15:$A$30,\"Zählung\",Personalausgaben!$B$15:$B$30,B24))+(SUMIFS(Personalausgaben!$I$15:$I$30,Personalausgaben!$A$15:$A$30,\"Zählung\",Personalausgaben!$B$15:$B$30,B24))","v":0},{"$f":"(SUMIFS(Personalausgaben!$G$15:$G$30,Personalausgaben!$A$15:$A$30,\"Zählung\",Personalausgaben!$B$15:$B$30,B24))","v":0},{"$f":"(SUMIFS(Personalausgaben!$M$15:$M$30,Personalausgaben!$A$15:$A$30,\"Zählung\",Personalausgaben!$B$15:$B$30,B24))","v":0},{"$f":"(SUMIFS(Personalausgaben!$N$15:$N$30,Personalausgaben!$A$15:$A$30,\"Zählung\",Personalausgaben!$B$15:$B$30,B24))","v":0},null,null,null,0,"",""]
["Oktober",10,{"$f":"COUNTIFS(Personalausgaben!$A$15:$A$30,\"Zählung\",Personalausgaben!$B$15:$B$30,$B25,Personalausgaben!$E$15:$E$30,\"<>\")","v":0},null,null,{"$f":"(SUMIFS(Personalausgaben!$H$15:$H$30,Personalausgaben!$A$15:$A$30,\"Zählung\",Personalausgaben!$B$15:$B$30,B25))+(SUMIFS(Personalausgaben!$I$15:$I$30,Personalausgaben!$A$15:$A$30,\"Zählung\",Personalausgaben!$B$15:$B$30,B25))","v":0},{"$f":"(SUMIFS(Personalausgaben!$G$15:$G$30,Personalausgaben!$A$15:$A$30,\"Zählung\",Personalausgaben!$B$15:$B$30,B25))","v":0},{"$f":"(SUMIFS(Personalausgaben!$M$15:$M$30,Personalausgaben!$A$15:$A$30,\"Zählung\",Personalausgaben!$B$15:$B$30,B25))","v":0},{"$f":"(SUMIFS(Personalausgaben!$N$15:$N$30,Personalausgaben!$A$15:$A$30,\"Zählung\",Personalausgaben!$B$15:$B$30,B25))","v":0},null,null,null,0,"",""]
["November",11,{"$f":"COUNTIFS(Personalausgaben!$A$15:$A$30,\"Zählung\",Personalausgaben!$B$15:$B$30,$B26,Personalausgaben!$E$15:$E$30,\"<>\")","v":0},null,null,{"$f":"(SUMIFS(Personalausgaben!$H$15:$H$30,Personalausgaben!$A$15:$A$30,\"Zählung\",Personalausgaben!$B$15:$B$30,B26))+(SUMIFS(Personalausgaben!$I$15:$I$30,Personalausgaben!$A$15:$A$30,\"Zählung\",Personalausgaben!$B$15:$B$30,B26))","v":0},{"$f":"(SUMIFS(Personalausgaben!$G$15:$G$30,Personalausgaben!$A$15:$A$30,\"Zählung\",Personalausgaben!$B$15:$B$30,B26))","v":0},{"$f":"(SUMIFS(Personalausgaben!$M$15:$M$30,Personalausgaben!$A$15:$A$30,\"Zählung\",Personalausgaben!$B$15:$B$30,B26))","v":0},{"$f":"(SUMIFS(Personalausgaben!$N$15:$N$30,Personalausgaben!$A$15:$A$30,\"Zählung\",Personalausgaben!$B$15:$B$30,B26))","v":0},null,null,null,0,"",""]
["Dezember",12,{"$f":"COUNTIFS(Personalausgaben!$A$15:$A$30,\"Zählung\",Personalausgaben!$B$15:$B$30,$B27,Personalausgaben!$E$15:$E$30,\"<>\")","v":0},null,null,{"$f":"(SUMIFS(Personalausgaben!$H$15:$H$30,Personalausgaben!$A$15:$A$30,\"Zählung\",Personalausgaben!$B$15:$B$30,B27))+(SUMIFS(Personalausgaben!$I$15:$I$30,Personalausgaben!$A$15:$A$30,\"Zählung\",Personalausgaben!$B$15:$B$30,B27))","v":0},{"$f":"(SUMIFS(Personalausgaben!$G$15:$G$30,Personalausgaben!$A$15:$A$30,\"Zählung\",Personalausgaben!$B$15:$B$30,B27))","v":0},{"$f":"(SUMIFS(Personalausgaben!$M$15:$M$30,Personalausgaben!$A$15:$A$30,\"Zählung\",Personalausgaben!$B$15:$B$30,B27))","v":0},{"$f":"(SUMIFS(Personalausgaben!$N$15:$N$30,Personalausgaben!$A$15:$A$30,\"Zählung\",Personalausgaben!$B$15:$B$30,B27))","v":0},null,null,null,0,"",""]
["Jahressummen:",null,null,{"$f":"SUM(D16:D27)","v":0},null,{"$f":"SUM(F16:F27)","v":0},0,0,0,null,0]
[]
[{"$f":"\"In Teil A sind  \"&(COUNTIFS(Personalausgaben!$A$15:$A$30,\"Zählung\",Personalausgaben!$B$15:$B$30,\"<>\",Personalausgaben!$O$15:$O$30,\"ja\"))&\"  Zeilen als nachträgliche Gehaltskorrektur gekennzeichnet.\"","v":"In Teil A sind  0  Zeilen als nachträgliche Gehaltskorrektur gekennzeichnet."}]
[]
["Raum für Ihre Mitteilungen:"]
[]
[]
[]
[]
[]
["Hinweise bei Abweichungen der Mittelanforderung zu den erklärten Ausgaben: \nBitte überprüfen Sie, ob Ihre bisherige Mittelanforderung mit den erklärten Ausgaben übereinstimmt und passen Sie bitte zukünftige Mittelanforderungen Ihrem Bedarf an. \nSollten Sie mehr als 250,00 Euro Überzahlung feststellen, empfehlen wir Ihnen dringend, den Betrag an das Jobcenter zurückzuzahlen, um Zinsforderungen zu vermeiden. Geringere Überzahlungen schließen die Erhebung von Zinsen nicht aus. \nIn diesen Fällen ist jedoch eine Verrechnung einmaliger Überzahlungen mit laufenden Auszahlungen zweckmäßiger. \nSollten Sie von einer besonderen Überweisung absehen, wird die Überzahlung mit der nächsten Auszahlung verrechnet.\n* Die Angabe der möglichen Zinstage erfolgt nur vereinfacht zur groben und unverbindlichen Orientierung.\n   Die exakte tatsächliche Zinshöhe unter Berücksichtigung aller Zahlungs- und Verwendungstermine sowie Beträge und taggenauer Zinssätze muß mit geeigneten Zinsrechnern ermittelt werden, z.B. über https://foerderportal.bund.de/zinsonline/"]
[]
["Ich versichere die Richtigkeit und Vollständigkeit meiner Angaben."]
[]
[]
[]
[]
["Ort, Datum, Unterschrift, Stempel"]
[]
["Bitte zusätzlich auch Teil A \"Einzeldaten\" unterschreiben !"]
[]
["Weitere Informationen und Empfehlungen finden Sie in der Arbeitshilfe zur Abrechnung und Projektbegleitung."]

{"sheet":"Referenzwerte","index":2,"n_rows":11,"n_cols":5,"rows_kept":11,"cut":false,"hidden":true,"merged":[]}
["Stundenzahl","Max. Förderung","Mindestlohn",null,"Zeitraum der AE"]
[0,0,0,null,"* Bitte auswählen *"]
[15,690,{"$f":"A3*8.84*13/3","v":574.6},null,2017]
[20,915,{"$f":"A4*8.84*13/3","v":766.13333333333333},null,2018]
[25,1140,957.66666666666663]
[30,1370,1149.2]
[]
[]
[]
[]
["=Daten für die Gültigkeitsprüfung"]